fUSD/lending_fUSD_20260529
["ID","MTS","AMOUNT","RATE_DAILY","PERIOD"]
[423322585,1780056648000,-996.0,0.00028411,5]
[423322587,1780056648000,-158.81553262,0.00028484,7]
[423322574,1780056648000,-4091.61,0.00028355,2]
[423322614,1780056648000,-500.0,0.000285,2]
[423322626,1780056648000,-8393.79,0.00028516,30]
[423322618,1780056648000,-189.97503784,0.00028513,7]
[423322646,1780056648000,-8393.79,0.00028677,7]
[423322644,1780056648000,-3069.28,0.00028677,7]
[423322649,1780056648000,-2868.86,0.00028677,7]
[423322643,1780056648000,-200.0,0.00028646,2]
[423322653,1780056648000,-216.36883392,0.00028767,2]
[423322655,1780056648000,-1342.34,0.00028825,5]
[423322656,1780056648000,-4091.61,0.00028838,2]
[423322654,1780056648000,-215.5484138,0.000288,10]
[423322659,1780056648000,-2868.86,0.00028838,2]
[423322660,1780056648000,-150.0,0.00028855,2]
[423322657,1780056648000,-8393.79,0.00028838,2]
[423322661,1780056648000,-150.0,0.00028855,2]
[423322658,1780056648000,-1923.23,0.00028838,2]
[423322662,1780056648000,-4159.0,0.00028856,2]
[423322663,1780056648000,-1590.0,0.00028889,3]
[423322664,1780056648000,-150.0,0.00028897,2]
[423322665,1780056648000,-151.0,0.00028897,2]
[423322617,1780056648000,-163.0,0.00028507,3]
[423322666,1780056648000,-200.0,0.000289,2]
[423322668,1780056648000,-200.0,0.00028933,2]
[423322669,1780056648000,-700.0,0.00028943,2]
[423322670,1780056648000,-700.0,0.00028943,2]
[423322671,1780056648000,-700.0,0.00028943,2]
[423322672,1780056648000,-700.0,0.00028943,2]
[423322673,1780056648000,-700.0,0.00028943,2]
[423322652,1780056648000,-500.0,0.00028767,2]
[423322647,1780056648000,-6425.53,0.00028677,7]
[423322667,1780056648000,-50339.39,0.000289,14]
[423322645,1780056648000,-4091.61,0.00028677,7]
[423322651,1780056648000,-574.58950557,0.00028767,30]
[423322620,1780056648000,-189.4223681,0.00028513,7]
[423322619,1780056648000,-315.27778418,0.00028513,7]
[423322621,1780056648000,-158.4060256,0.00028513,7]
[423322623,1780056648000,-177.12688913,0.00028513,7]
[423322627,1780056648000,-6425.53,0.00028516,30]
[423322624,1780056648000,-337.78068669,0.00028513,7]
[423322625,1780056648000,-4091.61,0.00028516,30]
[423322628,1780056648000,-1923.23,0.00028516,30]
[423322630,1780056648000,-5174.22,0.00028516,30]
[423322629,1780056648000,-2868.86,0.00028516,30]
[423322632,1780056648000,-153.94279473,0.00028563,7]
[423322622,1780056648000,-170.04649441,0.00028513,7]
[423322633,1780056648000,-179.73061715,0.00028563,7]
[423322650,1780056648000,-5174.22,0.00028677,7]
[423322631,1780056648000,-160.71635889,0.00028563,7]
[423322648,1780056648000,-1923.23,0.00028677,7]
[423322642,1780056648000,-163.0,0.00028644,120]
[423322637,1780056648000,-6580.74,0.000286,7]
[423322641,1780056648000,-150.24780933,0.00028632,7]
[423322639,1780056648000,-167.31977061,0.00028632,2]
[423322640,1780056648000,-165.58963732,0.00028632,7]
[423322636,1780056648000,-3699.58,0.000286,7]
[423322634,1780056648000,-198.86252717,0.00028563,7]
[423322638,1780056648000,-200.0,0.00028611,2]
[423322635,1780056648000,-157.38283854,0.00028563,7]
[423322696,1780056649000,-10000.0,0.00029,2]
[423322702,1780056649000,-187.38,0.00029,2]
[423322697,1780056649000,-186.2,0.00029,2]
[423322698,1780056649000,-1209.0,0.00029,2]
[423322699,1780056649000,-158.72,0.00029,2]
[423322709,1780056649000,-1036.41,0.00029,30]
[423322701,1780056649000,-196.94,0.00029,2]
[423322700,1780056649000,-215.5484138,0.00029,30]
[423322707,1780056649000,-1036.41,0.00029,30]
[423322704,1780056649000,-187.38,0.00029,2]
[423322705,1780056649000,-1036.41,0.00029,30]
[423322708,1780056649000,-1036.41,0.00029,30]
[423322706,1780056649000,-1036.41,0.00029,30]
[423322710,1780056649000,-1036.41,0.00029,30]
[423322711,1780056649000,-1036.41,0.00029,30]
[423322695,1780056649000,-10000.0,0.00029,2]
[423322703,1780056649000,-187.38,0.00029,2]
[423322712,1780056649000,-1036.41,0.00029,30]
[423322679,1780056649000,-1225.0,0.00028961,2]
[423322694,1780056649000,-10000.0,0.00029,2]
[423322676,1780056649000,-700.0,0.00028943,2]
[423322674,1780056649000,-700.0,0.00028943,2]
[423322675,1780056649000,-700.0,0.00028943,2]
[423322677,1780056649000,-700.0,0.00028943,2]
[423322678,1780056649000,-683.0,0.00028943,2]
[423322681,1780056649000,-167.00015065,0.00028971,2]
[423322680,1780056649000,-996.0,0.00028965,6]
[423322682,1780056649000,-471.11515932,0.00028971,2]
[423322683,1780056649000,-219.49,0.00028973,7]
[423322684,1780056649000,-500.0,0.00028999,120]
[423322686,1780056649000,-500.0,0.00028999,30]
[423322685,1780056649000,-507.98,0.00028999,120]
[423322687,1780056649000,-612.29,0.00028999,120]
[423322688,1780056649000,-500.0,0.00028999,7]
[423322689,1780056649000,-602.37,0.00029,2]
[423322690,1780056649000,-602.39,0.00029,2]
[423322692,1780056649000,-602.37,0.00029,2]
[423322691,1780056649000,-602.37,0.00029,2]
[423322714,1780056649000,-1036.41,0.00029,30]
[423322693,1780056649000,-10000.0,0.00029,2]
[423322721,1780056649000,-1000.0,0.00029,2]
[423322739,1780056649000,-1000.0,0.00029,2]
[423322738,1780056649000,-1013.15,0.00029,2]
[423322742,1780056649000,-250.0,0.00029,30]
[423322743,1780056649000,-250.0,0.00029,30]
[423322740,1780056649000,-545.63,0.00029,30]
[423322741,1780056649000,-250.0,0.00029,30]
[423322744,1780056649000,-250.0,0.00029,30]
[423322745,1780056649000,-250.0,0.00029,30]
[423322746,1780056649000,-151.0,0.00029,30]
[423322748,1780056649000,-1908.56,0.00029,30]
[423322747,1780056649000,-1000.0,0.00029,2]
[423322750,1780056649000,-155.0,0.00029,2]
[423322751,1780056649000,-155.0,0.00029,2]
[423322752,1780056649000,-155.0,0.00029,2]
[423322753,1780056649000,-8393.87,0.00029,30]
[423322754,1780056649000,-1923.3,0.00029,30]
[423322713,1780056649000,-1036.41,0.00029,30]
[423322737,1780056649000,-2388.94,0.00029,2]
[423322736,1780056649000,-2151.0,0.00029,7]
[423322749,1780056649000,-4091.65,0.00029,30]
[423322733,1780056649000,-11591.88,0.00029,2]
[423322735,1780056649000,-1000.0,0.00029,2]
[423322717,1780056649000,-743.86583086,0.00029,2]
[423322715,1780056649000,-1036.41,0.00029,30]
[423322716,1780056649000,-1000.0,0.00029,2]
[423322720,1780056649000,-273.3521427,0.00029,2]
[423322718,1780056649000,-2382.26336414,0.00029,2]
[423322722,1780056649000,-1000.0,0.00029,2]
[423322724,1780056649000,-2500.0,0.00029,2]
[423322723,1780056649000,-500.0,0.00029,2]
[423322719,1780056649000,-2500.0,0.00029,2]
[423322725,1780056649000,-10000.0,0.00029,2]
[423322730,1780056649000,-391.22,0.00029,8]
[423322731,1780056649000,-391.22,0.00029,8]
[423322726,1780056649000,-1000.0,0.00029,2]
[423322728,1780056649000,-200.0,0.00029,2]
[423322729,1780056649000,-200.0,0.00029,2]
[423322732,1780056649000,-391.22,0.00029,9]
[423322727,1780056649000,-200.0,0.00029,2]
[423322734,1780056649000,-2500.0,0.00029,2]
[423322771,1780056650000,-310.43374218,0.000292,2]
[423322774,1780056650000,-155.51,0.000292,7]
[423322772,1780056650000,-3699.58,0.000292,7]
[423322773,1780056650000,-6580.74,0.000292,7]
[423322776,1780056650000,-200.0,0.00029222,2]
[423322781,1780056650000,-150.0,0.00029342,7]
[423322775,1780056650000,-2318.0,0.00029209,3]
[423322778,1780056650000,-150.0,0.00029342,7]
[423322780,1780056650000,-150.0,0.00029342,7]
[423322769,1780056650000,-1136.05,0.00029171,7]
[423322777,1780056650000,-150.0,0.00029342,7]
[423322779,1780056650000,-150.0,0.00029342,7]
[423322770,1780056650000,-846.98,0.00029171,7]
[423322760,1780056650000,-200.04,0.000291,2]
[423322766,1780056650000,-1590.0,0.00029147,3]
[423322765,1780056650000,-421.15673704,0.00029116,2]
[423322763,1780056650000,-416.11379654,0.00029116,2]
[423322767,1780056650000,-1101.23,0.00029171,7]
[423322764,1780056650000,-416.11379654,0.00029116,2]
[423322762,1780056650000,-200.0,0.000291,2]
[423322758,1780056650000,-316.92418714,0.00029,2]
[423322761,1780056650000,-200.0,0.000291,2]
[423322759,1780056650000,-402.83,0.000291,2]
[423322757,1780056650000,-10000.0,0.00029,2]
[423322756,1780056650000,-193.88359574,0.00029,2]
[423322755,1780056650000,-2868.95,0.00029,30]
[423322783,1780056650000,-157.66385825,0.00029342,7]
[423322768,1780056650000,-1040.25,0.00029171,7]
[423322782,1780056650000,-150.0,0.00029342,7]
[423322789,1780056650000,-583.08600206,0.000295,37]
[423322784,1780056650000,-200.0,0.00029402,2]
[423322786,1780056650000,-155.0,0.00029477,3]
[423322812,1780056650000,-697.0,0.00029759,30]
[423322811,1780056650000,-835.0,0.00029759,30]
[423322813,1780056650000,-2043.0,0.00029759,30]
[423322808,1780056650000,-1259.39874542,0.00029559,2]
[423322810,1780056650000,-50339.39,0.000297,14]
[423322809,1780056650000,-355.0,0.00029594,14]
[423322807,1780056650000,-996.0,0.0002952,6]
[423322804,1780056650000,-1560.05973038,0.000295,37]
[423322805,1780056650000,-178.33448423,0.000295,30]
[423322802,1780056650000,-1431.00951186,0.000295,37]
[423322803,1780056650000,-1560.05973038,0.000295,37]
[423322801,1780056650000,-1431.00951186,0.000295,37]
[423322799,1780056650000,-1345.71133556,0.000295,37]
[423322806,1780056650000,-1510.970504,0.000295,2]
[423322796,1780056650000,-1172.3946409,0.000295,37]
[423322800,1780056650000,-1345.71133556,0.000295,37]
[423322787,1780056650000,-150.0,0.00029499,60]
[423322788,1780056650000,-193.0,0.00029499,60]
[423322792,1780056650000,-1265.98620424,0.000295,37]
[423322791,1780056650000,-1265.98620424,0.000295,37]
[423322794,1780056650000,-546.43701413,0.000295,37]
[423322785,1780056650000,-1590.0,0.00029467,3]
[423322790,1780056650000,-583.08600206,0.000295,37]
[423322797,1780056650000,-1301.37995837,0.000295,37]
[423322798,1780056650000,-1301.37995837,0.000295,37]
[423322795,1780056650000,-1172.3946409,0.000295,37]
[423322793,1780056650000,-1406.96109423,0.000295,37]
[423322829,1780056651000,-313.46291996,0.00029818,7]
[423322831,1780056651000,-220.18842306,0.00029818,7]
[423322830,1780056651000,-434.89067663,0.00029818,7]
[423322836,1780056651000,-380.66181989,0.00029828,7]
[423322834,1780056651000,-309.05424705,0.00029818,7]
[423322835,1780056651000,-390.67493354,0.00029818,7]
[423322837,1780056651000,-340.8236082,0.00029828,7]
[423322833,1780056651000,-414.91976869,0.00029818,7]
[423322838,1780056651000,-305.49452106,0.00029828,7]
[423322839,1780056651000,-174.11467666,0.00029828,7]
[423322840,1780056651000,-417.67385008,0.00029828,7]
[423322841,1780056651000,-330.57567857,0.00029828,7]
[423322832,1780056651000,-317.52199663,0.00029818,7]
[423322824,1780056651000,-5338.0,0.00029807,30]
[423322816,1780056651000,-1042.0,0.00029765,30]
[423322828,1780056651000,-306.88262031,0.00029818,7]
[423322827,1780056651000,-317.63106525,0.00029818,7]
[423322825,1780056651000,-155.0,0.00029807,30]
[423322826,1780056651000,-306.04529791,0.00029818,7]
[423322822,1780056651000,-6580.74,0.000298,7]
[423322818,1780056651000,-2182.0,0.00029765,30]
[423322821,1780056651000,-3699.58,0.000298,7]
[423322820,1780056651000,-1356.0,0.00029768,2]
[423322819,1780056651000,-896.0,0.00029765,30]
[423322817,1780056651000,-731.0,0.00029765,30]
[423322814,1780056651000,-1023.0,0.00029759,30]
[423322815,1780056651000,-823.0,0.00029765,30]
[423322843,1780056651000,-242.27716993,0.00029828,7]
[423322823,1780056651000,-904.0,0.00029807,30]
[423322842,1780056651000,-394.28971165,0.00029828,7]
[423322872,1780056651000,-397.72505434,0.00029899,7]
[423322844,1780056651000,-168.69000495,0.00029828,7]
[423322874,1780056651000,-245.46767398,0.00029899,7]
[423322845,1780056651000,-413.5870651,0.00029828,5]
[423322873,1780056651000,-314.76567707,0.00029899,7]
[423322868,1780056651000,-675.56137339,0.00029847,7]
[423322869,1780056651000,-321.43271779,0.00029899,7]
[423322870,1780056651000,-307.88558946,0.00029899,7]
[423322866,1780056651000,-340.09298883,0.00029847,7]
[423322867,1780056651000,-354.25377826,0.00029847,7]
[423322863,1780056651000,-378.8447362,0.00029847,7]
[423322865,1780056651000,-316.8120512,0.00029847,7]
[423322864,1780056651000,-180.66670105,0.00029847,5]
[423322861,1780056651000,-151.12671918,0.00029847,7]
[423322862,1780056651000,-231.85378954,0.00029847,7]
[423322858,1780056651000,-411.62118709,0.00029828,7]
[423322871,1780056651000,-359.4612343,0.00029899,7]
[423322859,1780056651000,-354.02749078,0.00029828,7]
[423322850,1780056651000,-241.13361198,0.00029828,7]
[423322860,1780056651000,-379.95007568,0.00029847,7]
[423322847,1780056651000,-381.27646064,0.00029828,7]
[423322848,1780056651000,-576.83708468,0.00029828,7]
[423322852,1780056651000,-656.71112414,0.00029828,7]
[423322849,1780056651000,-382.23955748,0.00029828,7]
[423322851,1780056651000,-300.99596558,0.00029828,7]
[423322854,1780056651000,-317.24563307,0.00029828,7]
[423322855,1780056651000,-174.47523396,0.00029828,7]
[423322857,1780056651000,-185.27180721,0.00029828,2]
[423322856,1780056651000,-304.56936387,0.00029828,7]
[423322853,1780056651000,-358.91680101,0.00029828,7]
[423322846,1780056651000,-743.80517822,0.00029828,7]
[423322896,1780056652000,-300.0,0.00030137,8]
[423322904,1780056652000,-288.0,0.00030137,2]
[423322898,1780056652000,-398.21415052,0.00030137,7]
[423322900,1780056652000,-298.25,0.00030137,43]
[423322905,1780056652000,-200.0,0.00030137,2]
[423322901,1780056652000,-200.0,0.00030137,2]
[423322899,1780056652000,-1003.99,0.00030137,2]
[423322903,1780056652000,-150.0,0.00030137,2]
[423322908,1780056652000,-574.58950557,0.00030137,30]
[423322906,1780056652000,-278.0,0.00030137,2]
[423322907,1780056652000,-2600.0,0.00030137,60]
[423322911,1780056652000,-1986.55304269,0.0003014,42]
[423322910,1780056652000,-1986.55304269,0.0003014,42]
[423322912,1780056652000,-458.513334,0.000302,2]
[423322909,1780056652000,-433.14031565,0.00030137,2]
[423322914,1780056652000,-224.76,0.000302,2]
[423322897,1780056652000,-199.10707526,0.00030137,7]
[423322902,1780056652000,-273.0,0.00030137,2]
[423322895,1780056652000,-767.22,0.00030137,2]
[423322881,1780056652000,-200.0,0.0003,2]
[423322894,1780056652000,-331.17927465,0.00030096,7]
[423322913,1780056652000,-983.496666,0.000302,2]
[423322876,1780056652000,-182.0,0.00029928,120]
[423322878,1780056652000,-300.49561866,0.00029971,7]
[423322877,1780056652000,-334.63954123,0.00029971,2]
[423322875,1780056652000,-182.0,0.00029928,120]
[423322880,1780056652000,-327.059999,0.0003,11]
[423322883,1780056652000,-368.30440275,0.0003,30]
[423322884,1780056652000,-1000.0,0.0003,2]
[423322879,1780056652000,-200.0,0.0003,11]
[423322885,1780056652000,-1000.0,0.0003,2]
[423322887,1780056652000,-155.51,0.0003,7]
[423322886,1780056652000,-200.0,0.0003,2]
[423322890,1780056652000,-172.0,0.0003,14]
[423322888,1780056652000,-200.0,0.0003,2]
[423322889,1780056652000,-1500.0,0.0003,2]
[423322892,1780056652000,-996.0,0.00030075,7]
[423322891,1780056652000,-200.0,0.0003,2]
[423322893,1780056652000,-163.0,0.00030076,120]
[423322916,1780056652000,-971.61,0.00030222,120]
[423322882,1780056652000,-200.0,0.0003,2]
[423322920,1780056652000,-1099.79,0.00030271,7]
[423322937,1780056652000,-586.01240031,0.00030707,7]
[423322939,1780056652000,-563.2557031,0.00030717,7]
[423322942,1780056652000,-458.24178159,0.00030717,7]
[423322943,1780056652000,-348.22935332,0.00030717,7]
[423322945,1780056652000,-249.54806209,0.00030717,7]
[423322947,1780056652000,-201.40377158,0.00030717,7]
[423322946,1780056652000,-626.51077512,0.00030717,7]
[423322944,1780056652000,-219.92388746,0.00030717,7]
[423322951,1780056652000,-484.55433987,0.00030717,7]
[423322950,1780056652000,-591.43456747,0.00030717,7]
[423322949,1780056652000,-495.86351786,0.00030717,7]
[423322952,1780056652000,-337.38000991,0.00030717,7]
[423322954,1780056652000,-620.38059766,0.00030717,5]
[423322955,1780056652000,-292.23308746,0.00030717,7]
[423322953,1780056652000,-224.006469,0.00030717,7]
[423322956,1780056652000,-1115.70776733,0.00030717,7]
[423322919,1780056652000,-1007.05,0.00030271,7]
[423322938,1780056652000,-440.37684611,0.00030707,7]
[423322941,1780056652000,-511.2354123,0.00030717,7]
[423322948,1780056652000,-154.4990258,0.00030717,7]
[423322936,1780056652000,-463.58137057,0.00030707,7]
[423322921,1780056652000,-2000.0,0.00030365,7]
[423322940,1780056652000,-570.99272983,0.00030717,7]
[423322917,1780056652000,-4414.4,0.00030239,2]
[423322915,1780056652000,-50339.39,0.000302,14]
[423322918,1780056652000,-1066.09,0.00030271,7]
[423322923,1780056652000,-6580.74,0.000304,7]
[423322928,1780056652000,-459.06794687,0.00030707,7]
[423322927,1780056652000,-3000.0,0.00030685,60]
[423322924,1780056652000,-600.0,0.00030411,120]
[423322922,1780056652000,-3699.58,0.000304,7]
[423322926,1780056652000,-996.0,0.00030629,7]
[423322934,1780056652000,-476.28299495,0.00030707,7]
[423322935,1780056652000,-622.37965304,0.00030707,7]
[423322930,1780056652000,-460.32393047,0.00030707,7]
[423322931,1780056652000,-470.19437994,0.00030707,7]
[423322933,1780056652000,-652.33601494,0.00030707,7]
[423322925,1780056652000,-2318.0,0.00030473,3]
[423322929,1780056652000,-476.44659787,0.00030707,7]
[423322932,1780056652000,-162.01615878,0.00030707,7]
[423322991,1780056653000,-243.4795262,0.00030737,7]
[423322975,1780056653000,-531.04123617,0.00030717,7]
[423322978,1780056653000,-985.06668621,0.00030717,7]
[423322984,1780056653000,-224.90378685,0.00030737,7]
[423322987,1780056653000,-194.97431839,0.00030737,7]
[423322985,1780056653000,-302.25343837,0.00030737,7]
[423322986,1780056653000,-154.37760921,0.00030737,7]
[423322988,1780056653000,-293.91397963,0.00030737,7]
[423322989,1780056653000,-220.71003072,0.00030737,7]
[423322990,1780056653000,-463.70757908,0.00030737,7]
[423322997,1780056653000,-510.13948324,0.00030737,7]
[423322992,1780056653000,-152.29490688,0.00030737,7]
[423322994,1780056653000,-155.22549886,0.00030737,7]
[423322995,1780056653000,-568.2671043,0.00030737,7]
[423322996,1780056653000,-361.3334021,0.00030737,5]
[423322999,1780056653000,-1013.34206008,0.00030737,7]
[423322998,1780056653000,-531.38066739,0.00030737,7]
[423323000,1780056653000,-835.0,0.00030759,30]
[423323002,1780056653000,-2043.0,0.00030759,30]
[423322982,1780056653000,-228.99814346,0.00030737,7]
[423322993,1780056653000,-597.32122579,0.00030737,7]
[423322981,1780056653000,-203.0969762,0.00030737,7]
[423322958,1780056653000,-162.99682541,0.00030717,7]
[423322983,1780056653000,-250.76218008,0.00030737,7]
[423322957,1780056653000,-571.91469096,0.00030717,7]
[423322959,1780056653000,-166.89255691,0.00030717,7]
[423323003,1780056653000,-1023.0,0.00030759,30]
[423322960,1780056653000,-573.35933622,0.00030717,7]
[423322969,1780056653000,-475.86844961,0.00030717,7]
[423322970,1780056653000,-516.54138783,0.00030717,7]
[423322962,1780056653000,-204.48231542,0.00030717,7]
[423322971,1780056653000,-348.95046792,0.00030717,7]
[423322972,1780056653000,-456.85404581,0.00030717,7]
[423322974,1780056653000,-617.43178064,0.00030717,7]
[423322964,1780056653000,-259.13241421,0.00030717,2]
[423322963,1780056653000,-280.93761709,0.00030717,2]
[423322966,1780056653000,-482.26722397,0.00030717,7]
[423322967,1780056653000,-451.49394837,0.00030717,7]
[423322968,1780056653000,-606.76483683,0.00030717,7]
[423322973,1780056653000,-370.54361442,0.00030717,2]
[423322979,1780056653000,-150.7777502,0.00030717,7]
[423322976,1780056653000,-165.50411573,0.00030717,7]
[423322980,1780056653000,-569.92511352,0.00030737,7]
[423322977,1780056653000,-538.37520152,0.00030717,7]
[423322965,1780056653000,-293.88995501,0.00030717,2]
[423323001,1780056653000,-697.0,0.00030759,30]
[423322961,1780056653000,-865.25562702,0.00030717,7]
[423323004,1780056653000,-823.0,0.00030765,30]
[423323031,1780056653000,-833.92535152,0.00030992,2]
[423323033,1780056653000,-450.74342799,0.00030992,7]
[423323034,1780056653000,-3699.58,0.00031,7]
[423323032,1780056653000,-496.76891197,0.00030992,7]
[423323035,1780056653000,-6580.74,0.00031,7]
[423323036,1780056653000,-3190.23638862,0.0003106,120]
[423323037,1780056653000,-4503.27412532,0.0003106,120]
[423323038,1780056653000,-331.3543617,0.0003106,120]
[423323039,1780056653000,-1590.0,0.00031089,3]
[423323027,1780056653000,-2318.0,0.00030902,3]
[423323040,1780056653000,-2318.0,0.00031089,3]
[423323041,1780056653000,-971.61,0.00031126,120]
[423323046,1780056653000,-855.269999,0.000312,7]
[423323045,1780056653000,-372.55333,0.000312,7]
[423323044,1780056653000,-183.036669,0.000312,7]
[423323047,1780056653000,-1590.0,0.00031222,3]
[423323042,1780056653000,-2318.0,0.00031159,3]
[423323049,1780056653000,-2318.0,0.00031222,3]
[423323050,1780056653000,-500.0,0.00031233,7]
[423323005,1780056653000,-1042.0,0.00030765,30]
[423323043,1780056653000,-996.0,0.00031184,8]
[423323030,1780056653000,-668.65185756,0.00030992,2]
[423323048,1780056653000,-163.0,0.00031222,3]
[423323028,1780056653000,-500.0,0.00030959,60]
[423323029,1780056653000,-2600.0,0.00030959,60]
[423323006,1780056653000,-731.0,0.00030765,30]
[423323007,1780056653000,-2182.0,0.00030765,30]
[423323011,1780056653000,-461.82838418,0.0003079,7]
[423323010,1780056653000,-482.14907668,0.0003079,7]
[423323013,1780056653000,-539.19185146,0.0003079,7]
[423323012,1780056653000,-245.75621847,0.0003079,7]
[423323009,1780056653000,-151.0,0.00030787,7]
[423323015,1780056653000,-472.14851561,0.0003079,7]
[423323014,1780056653000,-596.58758152,0.0003079,7]
[423323008,1780056653000,-896.0,0.00030765,30]
[423323018,1780056653000,-490.93534795,0.0003079,7]
[423323016,1780056653000,-186.35175459,0.0003079,7]
[423323023,1780056653000,-155.0,0.00030807,30]
[423323026,1780056653000,-501.95931184,0.00030864,2]
[423323024,1780056653000,-2318.0,0.00030808,3]
[423323025,1780056653000,-2318.0,0.00030808,3]
[423323019,1780056653000,-200.0,0.000308,11]
[423323022,1780056653000,-5338.0,0.00030807,30]
[423323020,1780056653000,-50339.39,0.000308,14]
[423323017,1780056653000,-214.55451255,0.0003079,7]
[423323021,1780056653000,-904.0,0.00030807,30]
[423323076,1780056654000,-1461.0,0.00031233,7]
[423323077,1780056654000,-1461.0,0.00031233,7]
[423323081,1780056654000,-1461.0,0.00031233,7]
[423323078,1780056654000,-1461.0,0.00031233,7]
[423323075,1780056654000,-1461.0,0.00031233,7]
[423323080,1780056654000,-1461.0,0.00031233,7]
[423323079,1780056654000,-1461.0,0.00031233,7]
[423323073,1780056654000,-648.81035998,0.00031233,120]
[423323086,1780056654000,-1461.0,0.00031233,7]
[423323083,1780056654000,-1461.0,0.00031233,7]
[423323085,1780056654000,-1461.0,0.00031233,7]
[423323084,1780056654000,-1461.0,0.00031233,7]
[423323088,1780056654000,-1461.0,0.00031233,7]
[423323087,1780056654000,-1461.0,0.00031233,7]
[423323089,1780056654000,-1461.0,0.00031233,7]
[423323091,1780056654000,-1461.0,0.00031233,7]
[423323092,1780056654000,-1461.0,0.00031233,7]
[423323074,1780056654000,-1461.0,0.00031233,7]
[423323082,1780056654000,-1461.0,0.00031233,7]
[423323072,1780056654000,-500.0,0.00031233,120]
[423323059,1780056654000,-500.0,0.00031233,7]
[423323070,1780056654000,-500.0,0.00031233,120]
[423323097,1780056654000,-1480.75333503,0.00031233,7]
[423323054,1780056654000,-150.0,0.00031233,7]
[423323053,1780056654000,-500.0,0.00031233,7]
[423323051,1780056654000,-500.0,0.00031233,7]
[423323052,1780056654000,-500.0,0.00031233,7]
[423323056,1780056654000,-500.0,0.00031233,7]
[423323055,1780056654000,-500.0,0.00031233,7]
[423323058,1780056654000,-500.0,0.00031233,7]
[423323057,1780056654000,-500.0,0.00031233,7]
[423323060,1780056654000,-500.0,0.00031233,7]
[423323061,1780056654000,-500.0,0.00031233,120]
[423323062,1780056654000,-500.0,0.00031233,7]
[423323064,1780056654000,-500.0,0.00031233,120]
[423323063,1780056654000,-500.0,0.00031233,120]
[423323066,1780056654000,-500.0,0.00031233,120]
[423323069,1780056654000,-500.0,0.00031233,120]
[423323067,1780056654000,-501.32346494,0.00031233,7]
[423323068,1780056654000,-500.0,0.00031233,120]
[423323071,1780056654000,-500.0,0.00031233,120]
[423323065,1780056654000,-500.0,0.00031233,7]
[423323094,1780056654000,-1461.0,0.00031233,7]
[423323098,1780056654000,-174.72474418,0.00031233,7]
[423323093,1780056654000,-1461.0,0.00031233,7]
[423323119,1780056654000,-500.0,0.00031233,7]
[423323122,1780056654000,-500.0,0.00031233,7]
[423323127,1780056654000,-613.76524063,0.00031299,7]
[423323123,1780056654000,-623.5560071,0.00031233,7]
[423323126,1780056654000,-635.26213049,0.00031299,7]
[423323121,1780056654000,-500.0,0.00031233,7]
[423323125,1780056654000,-612.09059583,0.00031299,7]
[423323124,1780056654000,-2318.0,0.00031276,3]
[423323129,1780056654000,-869.78135325,0.00031299,7]
[423323128,1780056654000,-626.92583991,0.00031299,7]
[423323130,1780056654000,-660.56526917,0.00031299,7]
[423323131,1780056654000,-164.02260231,0.00031299,7]
[423323132,1780056654000,-635.04399326,0.00031299,7]
[423323135,1780056654000,-159.34080076,0.00031299,7]
[423323134,1780056654000,-618.10849409,0.00031299,7]
[423323133,1780056654000,-829.83953739,0.00031299,7]
[423323136,1780056654000,-213.04846433,0.00031299,7]